bitfinex-derivatives/quotes_BTCF0:USTF0_20240829
["timestamp","ask_amount","ask_price","bid_price","bid_amount"]
[1724942131651,0.0842,60774.0,60769.0,0.3608]
[1724942131856,0.082253,60773.0,60769.0,0.3608]
[1724942133063,0.17941748,60771.0,60769.0,0.3608]
[1724942133360,0.17941748,60773.0,60769.0,0.3608]
[1724942133568,0.17941748,60774.0,60769.0,0.3608]
[1724942133865,0.08225,60775.0,60769.0,0.3608]
[1724942134061,0.08225,60775.0,60774.0,0.3608]
[1724942134266,0.13272696,60775.0,60774.0,0.3608]
[1724942134470,0.082245,60779.0,60774.0,0.3608]
[1724942134669,0.082249,60776.0,60774.0,0.3608]
[1724942134858,0.16330575,60776.0,60774.0,0.3608]
[1724942135555,0.16330575,60775.0,60774.0,0.3608]
[1724942135866,0.16330575,60775.0,60774.0,0.39023696]
[1724942136059,0.16330575,60776.0,60774.0,0.39023696]
[1724942136364,0.24555475,60776.0,60774.0,0.39023696]
[1724942136670,0.24063111,60821.0,60779.0,0.082244]
[1724942136671,0.05047696,60780.0,60779.0,0.082244]
[1724942136868,0.00084,60784.0,60779.0,0.082244]
[1724942136869,0.16330575,60788.0,60779.0,1.21436]
[1724942137060,0.16330575,60788.0,60787.0,0.7208]
[1724942137261,0.16330575,60794.0,60787.0,0.3608]
[1724942137465,0.44302,60798.0,60787.0,0.3608]
[1724942137466,0.21378271,60797.0,60787.0,0.3608]
[1724942137765,0.082232,60788.0,60787.0,0.3608]
[1724942138161,0.164464,60788.0,60787.0,0.3608]
[1724942138359,0.164464,60788.0,60779.0,0.3608]
[1724942138360,0.082233,60787.0,60779.0,0.3608]
[1724942138660,0.082233,60787.0,60780.0,0.086536]
[1724942138661,0.22967696,60787.0,60780.0,0.086536]
[1724942138863,0.22967696,60787.0,60781.0,0.085536]
[1724942139061,0.22967696,60787.0,60786.0,0.085536]
[1724942139062,0.05047696,60787.0,60786.0,0.085536]
[1724942139363,0.443033,60788.0,60786.0,0.085536]
[1724942139567,0.443033,60788.0,60787.0,0.085536]
[1724942140256,0.85432,60788.0,60779.0,0.62388233]
[1724942140574,0.082241,60781.0,60780.0,0.085536]
[1724942141064,0.164482,60781.0,60780.0,0.085536]
[1724942141261,0.082241,60781.0,60780.0,0.085536]
[1724942142268,0.3608,60782.0,60780.0,0.085536]
[1724942142467,0.082241,60781.0,60780.0,0.085536]
[1724942143569,0.082241,60781.0,60777.0,0.11212277]
[1724942143570,0.082246,60778.0,60777.0,0.02987577]
[1724942144064,0.3608,60782.0,60777.0,0.11541177]
[1724942144259,0.3608,60782.0,60779.0,0.085536]
[1724942144565,0.082243,60780.0,60779.0,0.085536]
[1724942144966,0.3608,60782.0,60781.0,0.082241]
[1724942145166,0.443033,60788.0,60787.0,0.082233]
[1724942145366,0.3608,60788.0,60787.0,0.167769]
[1724942145865,0.3257,60792.0,60787.0,0.085536]
[1724942146063,0.082219,60798.0,60791.0,0.446336]
[1724942146368,0.082223,60795.0,60791.0,0.3608]
[1724942146566,0.3608,60801.0,60796.0,0.085536]
[1724942146765,0.3608,60801.0,60791.0,0.3608]
[1724942146766,0.3608,60801.0,60800.0,0.167752]
[1724942147467,0.3608,60809.0,60803.0,0.082211]
[1724942147660,0.442989,60820.0,60808.0,0.085536]
[1724942147858,0.3608,60820.0,60813.0,0.085536]
[1724942148076,0.3608,60820.0,60814.0,0.237056]
[1724942148266,0.082192,60818.0,60815.0,0.15152]
[1724942148459,0.3608,60820.0,60814.0,0.085536]
[1724942148663,0.082193,60817.0,60816.0,0.15152]
[1724942148864,0.082196,60815.0,60814.0,0.085536]
[1724942149168,0.442996,60815.0,60814.0,0.02968834]
[1724942149365,0.442996,60815.0,60814.0,0.15152]
[1724942149969,0.082202,60811.0,60808.0,0.00024672]
[1724942150172,0.3608,60815.0,60813.0,0.085536]
[1724942150368,0.442996,60815.0,60814.0,0.15148]
[1724942150665,0.3608,60815.0,60814.0,0.237016]
[1724942150860,0.082193,60817.0,60814.0,0.237016]
[1724942151074,0.082193,60817.0,60816.0,0.085536]
[1724942151675,0.3608,60826.0,60816.0,0.446336]
[1724942151873,0.082179,60827.0,60825.0,0.085536]
[1724942152175,0.082184,60824.0,60822.0,0.085536]
[1724942152374,0.082184,60824.0,60823.0,0.15148]
[1724942152972,0.082187,60822.0,60817.0,0.00024672]
[1724942153170,0.72252,60826.0,60817.0,0.00024672]
[1724942153171,0.082187,60821.0,60820.0,0.085536]
[1724942153372,0.082187,60821.0,60820.0,0.237016]
[1724942153582,0.082191,60818.0,60817.0,0.00024672]
[1724942153976,0.082191,60818.0,60817.0,0.23726272]
[1724942154177,0.3608,60821.0,60817.0,0.23726272]
[1724942154384,0.3608,60821.0,60818.0,0.085536]
[1724942154570,0.082189,60820.0,60819.0,0.15148]
[1724942154877,0.082191,60818.0,60817.0,0.00024672]
[1724942155067,0.082191,60818.0,60817.0,0.23726272]
[1724942156071,0.3608,60821.0,60817.0,0.23726272]
[1724942156072,0.3608,60821.0,60820.0,0.082189]
[1724942156375,0.3608,60826.0,60825.0,0.082182]
[1724942156580,0.40103985,60826.0,60825.0,0.167718]
[1724942157268,0.442981,60826.0,60825.0,0.167718]
[1724942157576,0.3608,60826.0,60825.0,0.167718]
[1724942158371,0.082171,60834.0,60829.0,0.082176]
[1724942158579,0.082167,60837.0,60833.0,0.085536]
[1724942158770,0.04023292,60836.0,60834.0,0.3608]
[1724942158970,0.04023292,60835.0,60834.0,0.08217]
[1724942159268,0.14657711,60841.0,60839.0,0.085536]
[1724942159475,0.14657711,60841.0,60834.0,0.15144]
[1724942159476,0.04023255,60840.0,60838.0,0.236976]
[1724942159686,0.48319555,60839.0,60838.0,0.085536]
[1724942159876,0.48319555,60839.0,60838.0,0.236976]
[1724942160384,0.082168,60835.0,60834.0,0.02966698]
[1724942160678,0.12240055,60835.0,60834.0,0.15144]
[1724942160979,0.12240055,60835.0,60834.0,0.236976]
[1724942161477,0.12240055,60835.0,60834.0,0.085536]
[1724942161680,0.04023255,60835.0,60829.0,0.02986338]
[1724942161868,0.082171,60833.0,60832.0,0.15144]
[1724942162178,0.3608,60837.0,60829.0,0.02986338]
[1724942162179,0.082173,60832.0,60829.0,0.02986338]
[1724942162386,0.16435,60830.0,60829.0,0.02986338]
[1724942162571,0.082189,60820.0,60811.0,0.28]
[1724942162777,0.082189,60820.0,60819.0,0.528526]
[1724942163082,0.0901,60829.0,60819.0,0.446336]
[1724942163378,0.3257,60835.0,60826.0,0.085536]
[1724942163577,0.164358,60827.0,60826.0,0.085536]
[1724942163781,0.082179,60827.0,60826.0,0.085536]
[1724942164380,0.164358,60827.0,60826.0,0.085536]
[1724942164576,0.082182,60825.0,60824.0,0.00024672]
[1724942164784,0.164364,60825.0,60824.0,0.00024672]
[1724942165483,0.246546,60825.0,60824.0,0.00024672]
[1724942165877,0.164364,60825.0,60824.0,0.00024672]
[1724942166078,0.082182,60825.0,60824.0,0.08578272]
[1724942166775,0.082182,60825.0,60824.0,0.00024672]
[1724942167488,0.082182,60825.0,60824.0,0.08578272]
[1724942168488,0.082182,60825.0,60824.0,0.00024672]
[1724942169581,0.082182,60825.0,60824.0,0.08242972]
[1724942170084,0.082172,60833.0,60832.0,0.08217]
[1724942170481,0.082172,60833.0,60832.0,0.167706]
[1724942170889,0.082172,60833.0,60832.0,0.085536]
[1724942170890,0.164344,60833.0,60832.0,0.085536]
[1724942171084,0.44321203,60837.0,60832.0,0.085536]
[1724942171085,0.44321303,60837.0,60836.0,0.082167]
[1724942171385,0.36104603,60837.0,60836.0,0.167703]
[1724942171690,0.44321203,60837.0,60836.0,0.167703]
[1724942172279,0.44321203,60837.0,60836.0,0.085536]
[1724942172474,0.52537803,60837.0,60836.0,0.085536]
[1724942172786,0.44321203,60837.0,60836.0,0.085536]
[1724942173684,0.52537803,60837.0,60836.0,0.085536]
[1724942174483,0.246513,60833.0,60832.0,0.02945835]
[1724942174678,0.082182,60825.0,60823.0,0.082184]
[1724942174873,0.082182,60825.0,60824.0,0.18189604]
[1724942175076,0.082182,60825.0,60824.0,0.26743204]
[1724942175677,0.164364,60825.0,60824.0,0.03049604]
[1724942175979,0.164364,60825.0,60824.0,0.00024672]
[1724942176583,0.20460273,60825.0,60824.0,0.00024672]
[1724942176779,0.20460273,60825.0,60811.0,0.3608]
[1724942176780,0.0822,60812.0,60811.0,0.3608]
[1724942177076,0.0822,60812.0,60811.0,0.26390654]
[1724942177077,0.443,60812.0,60811.0,0.26390654]
[1724942177280,0.3608,60817.0,60816.0,0.082194]
[1724942177476,0.3608,60817.0,60816.0,0.16773]
[1724942177684,0.3608,60817.0,60811.0,0.18170554]
[1724942177892,0.3608,60817.0,60815.0,0.085536]
[1724942178081,0.05044201,60816.0,60815.0,0.085536]
[1724942178282,0.16330575,60816.0,60815.0,0.085536]
[1724942178585,0.13263606,60816.0,60815.0,0.085536]
[1724942178892,0.0822,60812.0,60811.0,0.03030554]
[1724942179193,0.31493606,60816.0,60812.0,0.085536]
[1724942179391,0.082198,60813.0,60812.0,0.085536]
[1724942180489,0.082198,60813.0,60812.0,0.167736]
[1724942181090,0.05044217,60816.0,60815.0,0.082196]
[1724942181287,0.13263617,60816.0,60815.0,0.167732]
[1724942182086,0.13263617,60816.0,60815.0,0.085536]
[1724942182391,0.082201,60812.0,60811.0,0.082201]
[1724942182888,0.082201,60812.0,60811.0,0.167737]
[1724942183088,0.21374792,60816.0,60813.0,0.082198]
[1724942183289,0.082196,60815.0,60814.0,0.082197]
[1724942183597,0.05044217,60816.0,60815.0,0.167732]
[1724942184496,0.57454792,60817.0,60815.0,0.167732]
[1724942184795,0.082198,60813.0,60811.0,0.0822]
[1724942184979,0.082204,60809.0,60808.0,0.11226328]
[1724942185291,0.082204,60809.0,60808.0,0.19779928]
[1724942186586,0.246612,60809.0,60808.0,0.08578272]
[1724942186783,0.082224,60794.0,60793.0,0.3608]
[1724942186985,0.082224,60794.0,60788.0,0.15196]
[1724942186986,0.082231,60789.0,60788.0,0.15196]
[1724942187184,0.3608,60789.0,60781.0,0.3608]
[1724942187493,0.3608,60789.0,60784.0,0.082237]
[1724942187494,0.082236,60785.0,60784.0,0.082237]
[1724942188591,0.3608,60789.0,60784.0,0.082237]
[1724942188781,0.3608,60789.0,60781.0,0.39028372]
[1724942188782,0.00024672,60791.0,60781.0,0.39028372]
[1724942188988,0.00024672,60791.0,60785.0,0.082236]
[1724942189194,0.00024672,60791.0,60781.0,0.39028372]
[1724942189380,0.082232,60788.0,60784.0,0.082236]
[1724942189782,0.00024672,60791.0,60781.0,0.39028372]
[1724942190396,0.082234,60787.0,60782.0,0.082239]
[1724942190990,0.082236,60786.0,60781.0,0.39028372]
[1724942191988,0.08223,60790.0,60782.0,0.08224]
[1724942192294,0.00024672,60791.0,60789.0,0.08223]
[1724942192793,0.00024672,60791.0,60787.0,0.082232]
[1724942192993,0.00024672,60791.0,60784.0,0.082236]
[1724942193188,0.08247472,60791.0,60785.0,0.082236]
[1724942194196,0.00024672,60791.0,60783.0,0.082239]
[1724942194384,0.00024672,60791.0,60781.0,0.39028372]
[1724942194385,0.3608,60788.0,60781.0,0.39028372]
[1724942194586,0.3608,60788.0,60782.0,0.152]
[1724942194795,0.3608,60788.0,60781.0,0.39028372]
[1724942194987,0.08224,60783.0,60781.0,0.39028372]
[1724942195183,0.3608,60788.0,60781.0,0.39028372]
[1724942195387,0.08224,60782.0,60781.0,0.39028372]
[1724942195594,0.16448,60782.0,60781.0,0.39028372]
[1724942195793,0.16448,60782.0,60781.0,0.02948372]
[1724942195992,0.164488,60779.0,60778.0,0.00024672]
[1724942196187,0.082244,60779.0,60778.0,0.00024672]
[1724942196390,0.082244,60779.0,60778.0,0.03050289]
[1724942196592,0.082244,60779.0,60778.0,0.00024672]
[1724942198713,0.082244,60779.0,60778.0,0.03047328]
[1724942198897,0.082244,60779.0,60778.0,0.00024672]
[1724942199390,0.082244,60780.0,60778.0,0.00024672]
[1724942199590,0.3608,60781.0,60778.0,0.00024672]
[1724942199898,0.3608,60781.0,60780.0,0.082243]
[1724942200203,0.443041,60781.0,60778.0,0.08249172]
[1724942200503,0.443041,60781.0,60778.0,0.00024672]
[1724942200796,0.082244,60779.0,60778.0,0.00024672]
[1724942200999,0.3608,60781.0,60778.0,0.08249272]
[1724942201200,0.443042,60781.0,60778.0,0.08249272]
[1724942201496,0.3257,60790.0,60778.0,0.00024672]
[1724942201705,0.082235,60786.0,60782.0,0.082239]
[1724942201894,0.3257,60790.0,60782.0,0.082239]
[1724942202091,0.082231,60789.0,60782.0,0.082239]
[1724942202288,0.3608,60794.0,60790.0,0.082229]
[1724942202489,0.00024672,60791.0,60790.0,0.082229]
[1724942202690,0.3608,60801.0,60800.0,0.082216]
[1724942202900,0.3608,60801.0,60795.0,0.28]
[1724942203295,0.3608,60801.0,60798.0,0.082218]
[1724942203490,0.3608,60801.0,60790.0,0.02974432]
[1724942203696,0.082224,60794.0,60790.0,0.082229]
[1724942203894,0.3608,60801.0,60791.0,0.15204]
[1724942204395,0.082224,60794.0,60791.0,0.15204]
[1724942204597,0.082226,60793.0,60791.0,0.15204]
[1724942204996,0.08222,60797.0,60792.0,0.082227]
[1724942205200,0.082221,60796.0,60792.0,0.082227]
[1724942205701,0.3608,60801.0,60794.0,0.28]
[1724942205900,0.08222,60798.0,60794.0,0.28]
[1724942206214,0.082221,60797.0,60791.0,0.15204]
[1724942206402,0.3608,60796.0,60789.0,0.12158976]
[1724942206602,0.3608,60791.0,60790.0,0.15204]
[1724942208797,0.082223,60795.0,60790.0,0.15204]
[1724942209092,0.16330575,60798.0,60793.0,0.28]
[1724942209295,0.29622575,60802.0,60795.0,0.082222]
[1724942209596,0.00024672,60802.0,60801.0,0.082214]
[1724942210101,0.00024672,60802.0,60801.0,0.575614]
[1724942210298,0.05044927,60814.0,60801.0,1.0934]
[1724942210505,0.05044927,60814.0,60810.0,0.082202]
[1724942210704,0.05044927,60814.0,60811.0,0.15156]
[1724942211003,0.05044638,60814.0,60811.0,0.15156]
[1724942211189,0.082206,60807.0,60806.0,0.08964672]
[1724942211393,0.082206,60807.0,60806.0,0.00024672]
[1724942211597,0.443006,60807.0,60806.0,0.00024672]
[1724942211801,0.493456,60807.0,60806.0,0.00024672]
[1724942212005,0.493456,60807.0,60806.0,0.03030046]
[1724942212200,0.493456,60807.0,60806.0,0.00024672]
[1724942212497,0.575662,60807.0,60806.0,0.00024672]
[1724942212901,0.575662,60807.0,60806.0,0.02946243]
[1724942213096,0.575662,60807.0,60806.0,0.00024672]
[1724942213704,0.525212,60807.0,60806.0,0.00024672]
[1724942214606,0.5756655,60807.0,60806.0,0.00024672]
[1724942214807,1.6690255,60807.0,60806.0,0.00024672]
[1724942214994,0.082217,60799.0,60798.0,0.03013962]
[1724942215195,0.60661061,60799.0,60798.0,0.03013962]
[1724942215392,0.65706411,60799.0,60798.0,0.03013962]
[1724942215608,0.4934705,60799.0,60798.0,0.03013962]
[1724942216106,0.443017,60799.0,60798.0,0.03013962]
[1724942216403,0.3608,60799.0,60798.0,0.11235762]
[1724942216999,0.082215,60801.0,60799.0,0.082217]
[1724942217811,0.082216,60800.0,60798.0,0.03013962]
[1724942218198,0.00024672,60805.0,60798.0,0.03013962]
[1724942218199,0.082217,60799.0,60798.0,0.03013962]
[1724942220912,0.443017,60799.0,60798.0,0.03013962]
[1724942221303,0.3608,60799.0,60798.0,0.03013962]
[1724942221503,0.00024672,60805.0,60804.0,0.08221]
[1724942221908,0.00024672,60805.0,60800.0,0.3608]
[1724942222101,0.00024672,60805.0,60801.0,0.082213]
[1724942222102,0.082213,60802.0,60801.0,0.082213]
[1724942222405,0.082213,60802.0,60800.0,0.3608]
[1724942222716,0.082213,60802.0,60800.0,0.443015]
[1724942223005,0.082213,60802.0,60801.0,0.0891]
[1724942223215,0.00024672,60805.0,60801.0,0.0891]
[1724942223510,0.00024672,60805.0,60804.0,0.08221]
[1724942223702,0.00024672,60805.0,60804.0,0.68221]
[1724942223899,0.00024672,60805.0,60804.0,0.57561]
[1724942224310,0.3608,60813.0,60810.0,0.082202]
[1724942224508,0.3608,60813.0,60811.0,0.15152]
[1724942225014,0.3608,60820.0,60812.0,0.0822]
[1724942225210,0.22938059,60817.0,60813.0,0.082198]
[1724942225512,0.0402445,60816.0,60813.0,0.082198]
[1724942225709,0.1224405,60815.0,60813.0,0.082198]
[1724942225902,0.0402445,60814.0,60813.0,0.082198]
[1724942226104,0.05044365,60819.0,60816.0,0.082194]
[1724942226306,0.05044203,60819.0,60818.0,0.082191]
[1724942226504,0.13262403,60825.0,60821.0,0.082187]
[1724942226707,0.05044203,60825.0,60821.0,0.362187]
[1724942226919,0.0402388,60824.0,60821.0,0.362187]
[1724942227101,0.082189,60820.0,60818.0,0.0917]
[1724942227410,0.082189,60820.0,60810.0,0.00024672]
[1724942227411,0.3608,60819.0,60813.0,0.083197]
[1724942227617,0.3608,60819.0,60814.0,0.233716]
[1724942227618,0.082191,60818.0,60814.0,0.233716]
[1724942228118,0.082191,60818.0,60815.0,0.082195]
[1724942228324,0.082194,60816.0,60813.0,0.001]
[1724942228610,0.082194,60816.0,60814.0,0.15152]
[1724942228922,0.08243303,60822.0,60814.0,0.15152]
[1724942229102,0.04023891,60821.0,60816.0,0.6408]
[1724942229307,0.04023891,60820.0,60816.0,0.6408]
[1724942229513,0.04023891,60819.0,60816.0,0.6408]
[1724942229814,0.00024603,60822.0,60816.0,0.6408]
[1724942230009,0.00024603,60822.0,60821.0,0.722987]
[1724942230311,0.00624603,60822.0,60821.0,0.722987]
[1724942230717,0.00024603,60822.0,60821.0,0.722987]
[1724942230910,0.082174,60831.0,60826.0,0.082179]
[1724942231111,0.082174,60831.0,60830.0,0.3608]
[1724942231318,0.12240499,60831.0,60830.0,0.3608]
[1724942231615,0.082185,60823.0,60822.0,0.15148]
[1724942231804,0.082186,60822.0,60821.0,0.51228]
[1724942232008,0.082186,60822.0,60821.0,0.54135376]
[1724942232307,0.082186,60822.0,60821.0,0.38987376]
[1724942232506,0.12442139,60822.0,60821.0,0.39087376]
[1724942233220,0.12942139,60822.0,60821.0,0.39187376]
[1724942233909,0.089186,60822.0,60821.0,0.39187376]
[1724942234220,0.171372,60822.0,60821.0,0.39187376]
[1724942234418,0.171372,60822.0,60821.0,0.03107376]
[1724942234612,0.171372,60822.0,60821.0,0.002]
[1724942235512,1.264612,60822.0,60821.0,0.00076847]
[1724942235720,1.39723843,60822.0,60821.0,0.00076847]
[1724942236414,1.67723843,60822.0,60821.0,4.7e-07]
[1724942236610,1.67724349,60822.0,60821.0,4.7e-07]
[1724942237621,0.246579,60817.0,60816.0,1.9e-07]
[1724942237825,0.607379,60817.0,60816.0,1.9e-07]
[1724942238009,1.15110449,60817.0,60816.0,1.9e-07]
[1724942238214,1.75110449,60817.0,60816.0,1.9e-07]
[1724942238923,1.76110449,60817.0,60816.0,0.00100019]
[1724942239312,1.07891149,60817.0,60816.0,0.00100019]
[1724942239521,0.74933696,60817.0,60816.0,0.00100019]
[1724942239721,1.24261696,60817.0,60816.0,0.00100019]
[1724942239923,1.07491149,60817.0,60816.0,1.9e-07]
[1724942240128,0.162402,60811.0,60810.0,0.00024672]
[1724942240420,0.605403,60811.0,60810.0,0.00024672]
[1724942240721,1.14916849,60811.0,60810.0,0.00024672]
[1724942240930,1.47987396,60811.0,60810.0,0.00024672]
[1724942241316,2.07987396,60811.0,60810.0,0.00024672]
[1724942241522,1.91616849,60811.0,60810.0,0.00024672]
[1724942241924,1.94312391,60811.0,60810.0,0.00024672]
[1724942242427,1.95012391,60811.0,60810.0,0.00124672]
[1724942243426,1.95412391,60811.0,60810.0,0.00224672]
[1724942243931,1.95412391,60811.0,60810.0,7.2e-07]
[1724942244134,2.11783553,60811.0,60810.0,7.2e-07]
[1724942245119,2.19997422,60811.0,60810.0,7.2e-07]
[1724942245321,0.246627,60805.0,60804.0,4.4e-07]
[1724942245528,0.887427,60805.0,60804.0,4.4e-07]
[1724942245824,2.03127249,60805.0,60804.0,4.4e-07]
[1724942246015,2.11350028,60805.0,60804.0,4.4e-07]
[1724942246214,2.27716144,60805.0,60782.0,0.16444]
[1724942246430,0.3608,60786.0,60783.0,0.082238]
[1724942246630,0.3588,60786.0,60783.0,0.082238]
[1724942247718,0.3588,60786.0,60778.0,0.00024672]
[1724942247719,0.082244,60779.0,60778.0,0.00024672]
[1724942247925,0.525288,60779.0,60778.0,0.00024672]
[1724942248428,0.523288,60779.0,60778.0,0.03020704]
[1724942248736,0.874532,60779.0,60778.0,0.00024672]
[1724942249026,0.512288,60779.0,60778.0,0.00024672]
[1724942249334,0.512288,60779.0,60778.0,0.00124672]
[1724942249335,0.522288,60779.0,60778.0,0.00124672]
[1724942249531,1.622888,60779.0,60778.0,0.00224672]
[1724942249720,1.902888,60779.0,60778.0,0.00224672]
[1724942249919,1.385132,60779.0,60778.0,0.00224672]
[1724942250124,1.985132,60779.0,60778.0,0.00224672]
[1724942250328,1.902888,60779.0,60778.0,0.00224672]
[1724942250724,1.985132,60779.0,60778.0,0.00224672]
[1724942250924,1.902888,60779.0,60778.0,0.00224672]
[1724942251124,1.985132,60779.0,60778.0,0.00224672]
[1724942251428,1.985132,60779.0,60778.0,7.2e-07]
[1724942251429,1.902888,60779.0,60778.0,7.2e-07]
[1724942251619,0.082277,60755.0,60754.0,0.0044]
[1724942251923,0.3608,60755.0,60754.0,0.03016002]
[1724942252118,0.3608,60755.0,60754.0,0.082278]
[1724942252824,0.3618,60755.0,60754.0,0.093278]
[1724942253529,0.3618,60755.0,60754.0,0.095278]
[1724942253727,0.3628,60755.0,60754.0,0.095278]
[1724942253922,0.002,60755.0,60754.0,0.456078]
[1724942254120,0.00024672,60761.0,60754.0,0.456078]
[1724942254121,0.00024672,60761.0,60754.0,1.4676]
[1724942254323,0.00024672,60761.0,60760.0,0.08227]
[1724942255332,0.00024672,60761.0,60760.0,0.44307]
[1724942255729,0.00124672,60761.0,60760.0,0.44307]
[1724942255933,0.00224672,60761.0,60760.0,0.44307]
[1724942256432,0.00224672,60761.0,60760.0,0.93683]
[1724942256633,0.00124672,60761.0,60760.0,0.93683]
[1724942256935,0.00224672,60761.0,60760.0,0.93983]
[1724942257936,0.00224672,60761.0,60760.0,0.44607]
[1724942258432,0.00224672,60761.0,60760.0,0.93983]
[1724942259233,0.00224672,60761.0,60760.0,0.44607]
[1724942261634,0.00224672,60761.0,60760.0,0.52834]
[1724942261933,0.082237,60784.0,60778.0,0.082246]
[1724942262134,0.3652,60786.0,60778.0,0.79156]
[1724942262135,0.3608,60786.0,60778.0,0.79156]
[1724942262337,0.3608,60786.0,60782.0,0.08224]
[1724942262638,0.3608,60786.0,60779.0,0.1755]
[1724942262838,0.3608,60786.0,60783.0,0.082237]
[1724942263039,0.082243,60780.0,60779.0,0.1755]
[1724942263238,0.525286,60780.0,60779.0,0.3562079]
[1724942263533,0.164494,60777.0,60776.0,0.00024672]
[1724942263738,0.164494,60777.0,60776.0,0.02960804]
[1724942263931,0.164494,60777.0,60776.0,0.00024672]
[1724942265031,0.178494,60777.0,60776.0,0.00024672]
[1724942265938,0.260741,60777.0,60776.0,0.00024672]
[1724942266135,0.271741,60777.0,60776.0,0.00024672]
[1724942267247,0.189494,60777.0,60776.0,0.00024672]
[1724942267537,0.107247,60777.0,60776.0,0.00024672]
[1724942267734,0.107247,60777.0,60776.0,0.08249472]
[1724942268342,0.025,60777.0,60776.0,0.08249472]
[1724942268843,0.025,60777.0,60776.0,1.17609472]
[1724942269429,0.025,60777.0,60776.0,0.57609472]
[1724942269633,0.025,60777.0,60776.0,1.17609472]
[1724942270540,0.025,60777.0,60776.0,0.57609472]
[1724942270740,0.025,60777.0,60776.0,1.17609472]
[1724942272040,0.025,60777.0,60776.0,0.57609472]
[1724942272237,0.025,60777.0,60776.0,0.08249472]
[1724942272436,0.025,60777.0,60776.0,0.23329472]
[1724942272633,0.107247,60777.0,60776.0,0.00024672]
[1724942273153,0.082252,60773.0,60763.0,0.0846]
[1724942273444,0.082259,60768.0,60766.0,0.1508]
[1724942274245,0.08226,60767.0,60766.0,0.1508]
[1724942274732,0.16452,60767.0,60766.0,0.1508]
[1724942275448,0.52532,60767.0,60766.0,0.1508]
[1724942275839,0.17252,60767.0,60766.0,0.1508]
[1724942276044,0.17252,60767.0,60766.0,0.18092747]
[1724942276045,0.09026,60767.0,60766.0,0.18092747]
[1724942276344,0.17252,60767.0,60766.0,0.18092747]
[1724942276544,0.17252,60767.0,60766.0,0.03012747]
[1724942276745,0.009,60767.0,60761.0,0.00024672]
[1724942277047,0.082267,60763.0,60762.0,0.082267]
[1724942277237,0.164534,60762.0,60761.0,0.00024672]
[1724942277643,0.082267,60762.0,60761.0,0.00024672]
[1724942278645,0.084267,60762.0,60761.0,0.00024672]
[1724942278839,0.527334,60762.0,60761.0,0.00024672]
[1724942279045,0.527334,60762.0,60759.0,0.18204611]
[1724942279046,0.07727,60760.0,60759.0,0.02952611]
[1724942279249,0.082279,60753.0,60748.0,0.1508]
[1724942279446,0.082279,60753.0,60749.0,0.082285]
[1724942279643,0.082279,60753.0,60748.0,0.1508]
[1724942280047,0.082279,60753.0,60751.0,0.082281]
[1724942280251,0.082275,60757.0,60752.0,0.19396737]
[1724942280444,0.077275,60757.0,60755.0,0.082277]
[1724942280949,0.00024672,60759.0,60758.0,0.082273]
[1724942281943,0.00024672,60759.0,60758.0,0.179673]
[1724942283153,0.00124672,60759.0,60758.0,0.179673]
[1724942283646,0.00124672,60759.0,60758.0,0.261946]
[1724942283855,0.00124672,60759.0,60758.0,0.179673]
[1724942284753,0.00124672,60759.0,60758.0,0.330473]
[1724942286555,0.00124672,60759.0,60758.0,0.179673]
[1724942286747,0.00124672,60759.0,60758.0,0.1508]
[1724942287058,0.08351772,60759.0,60758.0,0.1508]
[1724942287449,0.00124672,60759.0,60758.0,0.233073]
[1724942288644,0.08351772,60759.0,60758.0,0.233073]
[1724942289856,0.08351772,60759.0,60758.0,0.1508]
[1724942290445,0.08351772,60759.0,60753.0,0.0944]
[1724942290645,0.164548,60757.0,60753.0,0.0944]
[1724942290857,0.082279,60753.0,60752.0,0.19396737]
[1724942291157,0.443079,60753.0,60752.0,0.19396737]
[1724942291362,0.164576,60747.0,60746.0,0.00024672]
[1724942291555,0.723088,60747.0,60746.0,0.00024672]
[1724942291748,0.443088,60747.0,60746.0,0.00024672]
[1724942291946,0.525376,60747.0,60746.0,0.00024672]
[1724942293051,0.525376,60747.0,60746.0,7.2e-07]
[1724942293052,1.982504,60747.0,60746.0,7.2e-07]
[1724942293361,1.382504,60747.0,60746.0,7.2e-07]
[1724942293660,1.300216,60747.0,60746.0,7.2e-07]
[1724942293857,0.444088,60747.0,60746.0,7.2e-07]
[1724942296063,0.001,60747.0,60746.0,0.11217421]
[1724942296263,0.001,60747.0,60746.0,0.08228972]
[1724942296761,0.00024672,60759.0,60746.0,0.49384072]
[1724942296949,0.00024672,60759.0,60758.0,0.082273]
[1724942297356,0.00024672,60759.0,60758.0,0.362273]
[1724942297555,0.00024672,60759.0,60758.0,0.513113]
[1724942298256,0.3608,60772.0,60769.0,0.082258]
[1724942298459,0.3608,60772.0,60764.0,0.3608]
[1724942298965,0.3608,60772.0,60766.0,0.082262]
[1724942299865,0.3748,60772.0,60771.0,0.082255]
[1724942300053,0.014,60772.0,60771.0,0.082255]
[1724942300254,0.0038,60789.0,60771.0,0.4562]
[1724942300255,0.3608,60786.0,60771.0,0.4562]
[1724942300566,0.3608,60786.0,60783.0,0.082238]
[1724942300757,0.3608,60786.0,60778.0,0.082245]
[1724942300957,0.3608,60786.0,60782.0,0.15016]
[1724942301157,0.3608,60786.0,60776.0,0.3608]
[1724942301363,0.082241,60781.0,60777.0,0.15016]
[1724942301567,0.3608,60786.0,60777.0,0.15016]
[1724942301758,0.082242,60781.0,60777.0,0.15016]
[1724942302563,0.3608,60786.0,60778.0,0.082245]
[1724942302564,0.082238,60784.0,60778.0,0.082245]
[1724942302766,0.082238,60784.0,60777.0,0.15016]
[1724942302767,0.082238,60784.0,60779.0,0.082244]
[1724942302974,0.013,60781.0,60779.0,0.082244]
[1724942303267,0.027,60781.0,60777.0,0.001]
[1724942303458,0.027,60781.0,60778.0,0.15016]
[1724942303777,0.082243,60780.0,60778.0,0.15016]
[1724942304168,0.082246,60778.0,60777.0,0.001]
[1724942304374,0.082246,60778.0,60777.0,0.15116]
[1724942304669,0.027,60781.0,60777.0,0.15116]
[1724942304854,0.00024693,60787.0,60786.0,0.082235]